lending/lending_fUSD_20240911
["ID","MTS","AMOUNT","RATE_DAILY","PERIOD"]
[337761561,1726066241006,-849.709693,0.00014726,2]
[337761562,1726066241015,-22125.987271,0.00014726,2]
[337761563,1726066241025,-25572.677463,0.00014726,2]
[337761564,1726066241034,-500.0,0.00014733,2]
[337761565,1726066241044,-500.0,0.00014742,2]
[337761566,1726066241053,-160.0,0.00014743,2]
[337761567,1726066241201,-500.0,0.0001475,2]
[337761568,1726066241212,-500.0,0.00014759,2]
[337761569,1726066241222,-500.0,0.00014768,2]
[337761570,1726066241232,-500.0,0.00014777,2]
[337761571,1726066241242,-500.0,0.00014786,2]
[337761572,1726066241251,-1547.48247695,0.00014789,2]
[337761573,1726066241261,-500.0,0.00014794,2]
[337761574,1726066241270,-1500.0,0.000148,7]
[337761575,1726066241279,-500.0,0.00014803,2]
[337761576,1726066241288,-320.5062,0.00014804,2]
[337761577,1726066241297,-203.0,0.0001481,2]
[337761578,1726066241307,-212.0,0.0001481,2]
[337761579,1726066241317,-203.0,0.0001481,2]
[337761580,1726066241326,-212.0,0.0001481,2]
[337761581,1726066241335,-203.0,0.0001481,2]
[337761582,1726066241344,-369.0,0.0001481,2]
[337761583,1726066241354,-500.0,0.00014812,2]
[337761584,1726066241364,-500.0,0.00014821,2]
[337761585,1726066241374,-500.0,0.0001483,2]
[337761586,1726066241384,-500.0,0.00014838,2]
[337761587,1726066241397,-500.0,0.00014847,2]
[337761588,1726066241407,-500.0,0.00014856,2]
[337761589,1726066241416,-500.0,0.00014865,2]
[337761590,1726066241426,-500.0,0.00014874,2]
[337761591,1726066241437,-150.0,0.00014877,2]
[337761592,1726066241446,-500.0,0.00014882,2]
[337761593,1726066241456,-8500.0,0.00014882,2]
[337761594,1726066241465,-796.0,0.00014887,2]
[337761595,1726066241476,-1546.8945958,0.0001489,2]
[337761596,1726066241486,-500.0,0.00014891,2]
[337761597,1726066241496,-35000.0,0.00014891,2]
[337761598,1726066241505,-8500.0,0.00014891,2]
[337761599,1726066241514,-569.2942,0.00014899,2]
[337761600,1726066241523,-189.75821615,0.000149,2]
[337761601,1726066241533,-500.0,0.000149,2]
[337761602,1726066241542,-8500.0,0.000149,2]
[337761603,1726066241551,-1341.66631563,0.000149,2]
[337761604,1726066241560,-1778.01591009,0.000149,2]
[337761605,1726066241569,-500.0,0.000149,2]
[337761606,1726066241578,-35000.0,0.000149,2]
[337761607,1726066241588,-151.03303605,0.000149,2]
[337761608,1726066241597,-8500.0,0.000149,2]
[337761609,1726066241607,-152.88,0.000149,31]
[337761610,1726066241616,-152.88,0.000149,31]
[337761611,1726066241625,-152.88,0.000149,31]
[337761612,1726066241635,-152.88,0.000149,31]
[337761613,1726066241644,-152.88,0.000149,31]
[337761614,1726066241653,-152.88,0.000149,31]
[337761615,1726066241663,-152.88,0.000149,31]
[337761616,1726066241672,-6714.59813959,0.000149,2]
[337761617,1726066241682,-5843.43736003,0.000149,2]
[337761618,1726066241691,-164.63967503,0.000149,2]
[337761619,1726066241701,-1209.116479,0.00014904,2]
[337761620,1726066241710,-849.709693,0.00014904,2]
[337761621,1726066241720,-22125.987271,0.00014904,2]
[337761622,1726066241729,-25572.677463,0.00014904,2]
[337761623,1726066241739,-286.4498945,0.00014921,2]
[337761624,1726066241749,-150.06,0.00014922,2]
[337761625,1726066241759,-306696.0,0.00014932,2]
[337761626,1726066241768,-9647.0,0.00014932,2]
[337761627,1726066241777,-151.0,0.00014932,2]
[337761628,1726066241786,-1488.732582,0.00014932,2]
[337761629,1726066241796,-151.0,0.00014932,2]
[337761630,1726066241805,-266.473565,0.00014932,2]
[337761631,1726066241814,-151.0,0.00014932,2]
[337761632,1726066241824,-1488.732582,0.00014932,2]
[337761633,1726066241833,-266.473565,0.00014932,2]
[337761634,1726066241842,-165.171592,0.00014932,2]
[337761635,1726066241851,-414.811388,0.00014932,2]
[337761636,1726066241861,-414.811388,0.00014932,2]
[337761637,1726066241870,-203.0,0.0001499,2]
[337761638,1726066241880,-212.0,0.0001499,2]
[337761639,1726066241889,-203.0,0.0001499,2]
[337761640,1726066241898,-212.0,0.0001499,2]
[337761641,1726066241908,-203.0,0.0001499,2]
[337761642,1726066241917,-212.0,0.0001499,2]
[337761643,1726066241927,-150.06,0.0001499,2]
[337761644,1726066241937,-150.06,0.0001499,2]
[337761645,1726066241947,-150.06,0.0001499,2]
[337761646,1726066241956,-150.06,0.0001499,2]
[337761647,1726066241966,-150.06,0.0001499,2]
[337761648,1726066241975,-150.06,0.0001499,2]
[337761649,1726066241984,-12977.7921629,0.00014998,5]
[337761650,1726066241994,-5342.15673886,0.00014999,2]
[337761651,1726066242004,-10420.47466558,0.00014999,2]
[337761652,1726066242013,-1736730.23556553,0.00015,2]
[337761655,1726066242632,-27957.0,0.00015,2]
[337761667,1726066242957,-373.56117198,0.00015,2]
[337761668,1726066243068,-580853.98641709,0.00015,2]
[337761669,1726066243097,-5941.76094401,0.00015,2]
[337761670,1726066243108,-7565.55819903,0.00015,2]
[337761757,1726066244075,-1011.21766666,0.00013287,2]
[337761760,1726066244094,-627.72924928,0.00013287,2]
[337761762,1726066244109,-977.62255448,0.00015,2]
[337761765,1726066244128,-607.69063281,0.00015,2]
[337761770,1726066244348,-7665.65416477,0.00015,2]
[337761772,1726066244374,-936.31356022,0.00015,2]
[337761775,1726066244394,-1515.8806975,0.00015,2]
[337761778,1726066244413,-445.70504057,0.00015,2]
[337761781,1726066244433,-1034.21975914,0.00015,2]
[337761784,1726066244452,-1116.0,0.00015,2]
[337761786,1726066244470,-38532.7306735,0.00015,2]
[337761790,1726066244490,-8679.59506081,0.00015,2]
[337761792,1726066244508,-1952631.75039685,0.00015,2]
[337761797,1726066244539,-10880.50534132,0.00015,2]
[337761799,1726066244557,-1000.0,0.00015,2]
[337761802,1726066244577,-4078.9714258,0.00015,2]
[337761949,1726066245873,-1294.63954852,0.00015,2]
[337761952,1726066245884,-11920.46717724,0.00015,2]
[337761957,1726066245926,-3648.9525255,0.00015,2]
[337761959,1726066245938,-2660.46376001,0.00015,2]
[337761965,1726066245984,-4751.3227218,0.00015,2]
[337761967,1726066245996,-851.8748782,0.00015,2]
[337761973,1726066246039,-580.64648104,0.00015,2]
[337761980,1726066246095,-708.1,0.00015,2]
[337762695,1726066296691,500.0,0.00011164,2]
[337762696,1726066298528,500.0,0.00011164,2]
[337762697,1726066319809,500.0,0.00011164,2]
[337762698,1726066395022,500.0,0.00011164,2]
[337762699,1726066508751,225.88,0.00010959,2]
[337762701,1726066585418,487.1,0.00011733,2]
[337762702,1726067386399,520.14,0.00011323,2]
[337762706,1726067432057,-284.0,0.000128,2]
[337762707,1726067432066,-76.2475,0.000129,2]
[337762708,1726067432078,-377202.4735236,0.000129,2]
[337762709,1726067432226,-992.66043738,0.000129,2]
[337762720,1726067438033,-294.33470876,0.00012899,2]
[337762721,1726067438044,-319.12090072,0.00012899,2]
[337762722,1726067438053,-29242.52658485,0.000129,2]
[337762723,1726067438081,-6275.76195417,0.000129,2]
[337762724,1726067438090,-7474.3686,0.000129,2]
[337762725,1726067438100,-460.82,0.00013,2]
[337762726,1726067438109,-679.99944149,0.00013,2]
[337762727,1726067438119,-2000.0,0.00013254,2]
[337762728,1726067438128,-5582.88,0.00013303,2]
[337762729,1726067438137,-250.0,0.00013311,2]
[337762730,1726067438147,-200.0,0.00013315,2]
[337762731,1726067438157,-246.64,0.00013318,2]
[337762732,1726067438167,-150.0,0.00013319,2]
[337762733,1726067438176,-5860.0,0.00013319,2]
[337762734,1726067438185,-1145.0,0.00013319,2]
[337762735,1726067438194,-7457.256,0.00013319,2]
[337762736,1726067438203,-1079.0,0.00013319,2]
[337762737,1726067438212,-250.0,0.00013321,2]
[337762738,1726067438221,-296.30964398,0.00013366,2]
[337762739,1726067438232,-203.69035602,0.00013366,2]
[337762740,1726067438241,-195.55,0.00013407,2]
[337762741,1726067438250,-1689.48,0.00013415,2]
[337762742,1726067438260,-499.99,0.00013415,2]
[337762743,1726067438269,-1431.05020852,0.00013459,2]
[337762744,1726067438295,-1115.57979148,0.00013459,2]
[337762745,1726067438304,-957.85386758,0.00013482,2]
[337762760,1726067440242,-2792.78201136,0.00013482,2]
[337762761,1726067440254,-840.8528301,0.00013482,2]
[337762762,1726067440266,-1825.30000002,0.00013482,2]
[337762763,1726067440334,-363.48129094,0.00013482,2]
[337762764,1726067440343,-150.0,0.00013486,2]
[337762765,1726067440352,-150.0,0.00013487,2]
[337762766,1726067440361,-624.0,0.00013487,2]
[337762767,1726067440370,-1547.0,0.00013487,2]
[337762768,1726067440380,-448.0,0.00013487,2]
[337762769,1726067440391,-1261.0,0.00013487,2]
[337762770,1726067440400,-810.0,0.00013487,2]
[337762771,1726067440410,-931.0,0.00013487,2]
[337762772,1726067440422,-557.0,0.00013487,2]
[337762773,1726067440431,-150.0,0.00013487,2]
[337762774,1726067440440,-556.208,0.00013487,2]
[337762775,1726067440449,-1901.0,0.00013487,2]
[337762776,1726067440458,-1119.0,0.00013487,2]
[337762777,1726067440468,-248.0,0.00013487,2]
[337762778,1726067440477,-3343.0,0.00013487,2]
[337762779,1726067440486,-1921.0,0.00013487,2]
[337762780,1726067440495,-805.0,0.00013487,2]
[337762781,1726067440504,-160.17432264,0.000135,2]
[337762782,1726067440514,-500.0,0.000135,2]
[337762783,1726067440523,-250.0,0.00013521,2]
[337762784,1726067440532,-1000.0,0.00013548,2]
[337762787,1726067440542,-520.14,0.00013586,2]
[337762790,1726067440551,-160.0,0.00013687,2]
[337762792,1726067440561,-192.67,0.00013699,2]
[337762793,1726067440570,-500.0,0.00013699,2]
[337762794,1726067440580,-200.0,0.00013699,2]
[337762795,1726067440589,-2751.0,0.00013699,2]
[337762796,1726067440598,-176.1,0.00013699,2]
[337762797,1726067440608,-546.08,0.00013699,2]
[337762798,1726067440617,-1000.0,0.000138,2]
[337762799,1726067440626,-226.0,0.000138,2]
[337762800,1726067440635,-359.0,0.000138,2]
[337762801,1726067440643,-500.0,0.00013904,2]
[337762802,1726067440654,-501.6808368,0.00013904,2]
[337762803,1726067440665,-500.0,0.00013904,2]
[337762804,1726067440676,-710.494,0.00013904,2]
[337762805,1726067440685,-212.405,0.00013904,2]
[337762806,1726067440694,-505.13,0.00014055,2]
[337762807,1726067440703,-422.33,0.00014055,2]
[337762808,1726067440712,-422.33,0.00014055,2]
[337762809,1726067440722,-422.33,0.00014055,2]
[337762810,1726067440731,-2139.71128428,0.0001421,7]
[337762811,1726067440740,-500.0,0.00014214,2]
[337762812,1726067440752,-500.0,0.00014222,2]
[337762813,1726067440762,-500.0,0.00014231,2]
[337762814,1726067440771,-500.0,0.0001424,2]
[337762815,1726067440780,-500.0,0.00014249,2]
[337762816,1726067440789,-500.0,0.00014258,2]
[337762817,1726067440800,-500.0,0.00014266,2]
[337762818,1726067440809,-500.0,0.00014275,2]
[337762819,1726067440818,-500.0,0.00014284,2]
[337762820,1726067440827,-500.0,0.00014293,2]
[337762821,1726067440838,-500.0,0.00014302,2]
[337762822,1726067440847,-500.0,0.0001431,2]
[337762823,1726067440857,-500.0,0.00014319,2]
[337762824,1726067440866,-500.0,0.00014328,2]
[337762825,1726067440875,-500.0,0.00014337,2]
[337762826,1726067440884,-500.0,0.00014346,2]
[337762827,1726067440893,-500.0,0.00014354,2]
[337762828,1726067440901,-192.67,0.00014384,2]
[337762829,1726067440911,-214.0,0.0001443,2]
[337762830,1726067440922,-150.0,0.000146,2]
[337762831,1726067440931,-255.0,0.00014605,2]
[337762832,1726067440940,-214.0,0.0001462,2]
[337762833,1726067440950,-1009.81660286,0.000147,2]
[337762834,1726067440959,-1079.52236047,0.000147,2]
[337762835,1726067440969,-376.005762,0.00014795,2]
[337762836,1726067440978,-214.0,0.0001481,2]
[337762837,1726067440988,-214.0,0.0001481,2]
[337762838,1726067440998,-150.17,0.0001489,2]
[337762839,1726067441007,-3192.2608,0.0001489,2]
[337762840,1726067441016,-3920.9151,0.000149,2]
[337762841,1726067441026,-379.51643228,0.000149,2]
[337762842,1726067441036,-8500.0,0.000149,2]
[337762843,1726067441047,-4662.2844124,0.000149,2]
[337762844,1726067441057,-152.89,0.000149,31]
[337762845,1726067441067,-152.89,0.000149,31]
[337762846,1726067441077,-152.89,0.000149,31]
[337762847,1726067441087,-152.89,0.000149,31]
[337762848,1726067441099,-152.89,0.000149,31]
[337762849,1726067441109,-152.89,0.000149,31]
[337762850,1726067441119,-224.47477815,0.000149,2]
[337762851,1726067441128,-152.89,0.000149,31]
[337762852,1726067441137,-855.83323694,0.000149,2]
[337762853,1726067441146,-600.000001,0.00014924,3]
[337762854,1726067441155,-158.15,0.00014927,2]
[337762855,1726067441164,-180.78214353,0.00014979,2]
[337762856,1726067441174,-65693.3528203,0.0001498,2]
[337762857,1726067441183,-36293.5623147,0.0001498,2]
[337762858,1726067441192,-89055.07292924,0.0001498,2]
[337762862,1726067443126,-1678.83285756,0.0001498,2]
[337762863,1726067443136,-2996.91421181,0.00014989,2]
[337762864,1726067443147,-5350.19999999,0.00014989,2]
[337762865,1726067443159,-411.7493109,0.00014989,2]
[337762866,1726067443170,-400.30481951,0.00014989,2]
[337762867,1726067443210,-500.0,0.00014989,2]
[337762868,1726067443222,-413.1164353,0.00014989,2]
[337762869,1726067443353,-8074.49637989,0.00014989,2]
[337762870,1726067443363,-47847.73899977,0.0001499,2]
[337762871,1726067443374,-1377.74172289,0.0001499,2]
[337763128,1726067446072,-295.25514135,0.0001499,2]
[337763130,1726067446083,-1834.85362429,0.0001499,2]
[337763138,1726067446145,-1741.01490028,0.0001499,2]
[337763140,1726067446157,-3035.9509973,0.0001499,2]
[337763142,1726067446168,-6882.92088896,0.0001499,2]
[337763144,1726067446180,-769.05650803,0.0001499,2]
[337763146,1726067446191,-684.36699985,0.0001499,2]
[337763150,1726067446216,-92976.23643024,0.0001499,2]
[337763152,1726067446228,-3360.2875819,0.0001499,2]
[337763154,1726067446240,-1458.83968283,0.0001499,2]
[337763156,1726067446251,-409.14193754,0.0001499,2]
[337763158,1726067446263,-717.12394233,0.0001499,2]
[337763160,1726067446274,-2479.97084612,0.0001499,2]
[337763162,1726067446285,-1141.6,0.0001499,2]
[337763164,1726067446296,-1195.57080635,0.0001499,2]
[337763167,1726067446308,-351.66739688,0.0001499,2]
[337763214,1726067446771,-3077.64182638,0.0001499,2]
[337763216,1726067446783,-6048.65000081,0.0001499,2]
[337763219,1726067446799,-432.5,0.0001499,2]
[337763221,1726067446810,-2189.5392959,0.0001499,2]
[337763223,1726067446821,-594.96858718,0.0001499,2]
[337763225,1726067446834,-2132.03664148,0.0001499,2]
[337763227,1726067446845,-383.87296915,0.0001499,2]
[337763230,1726067446860,-1529.65936875,0.0001499,2]
[337763232,1726067446871,-4666.27831828,0.0001499,2]
[337763234,1726067446882,-2858.56287337,0.0001499,2]
[337763236,1726067446893,-6172.81784563,0.0001499,2]
[337763238,1726067446904,-968.72659716,0.0001499,2]
[337763240,1726067446913,-214.0,0.0001499,2]
[337763242,1726067446925,-214.0,0.0001499,2]
[337763244,1726067446936,-723.9543163,0.0001499,2]
[337763246,1726067446946,-774.0761976,0.0001499,2]
[337763248,1726067446955,-824.1980789,0.0001499,2]
[337763250,1726067446963,-874.3199603,0.0001499,2]
[337763252,1726067446973,-924.4418416,0.0001499,2]
[337763254,1726067446983,-63.41456814,0.0001499,2]
[337763256,1726067446994,-1026.45018911,0.0001499,2]
[337763258,1726067447005,-721.62621433,0.0001499,2]
[337763888,1726067476198,500.0,0.00011164,2]
[337763889,1726067476373,11508.0,0.000102,5]
[337763890,1726067476641,11508.0,0.000101,3]
[337763891,1726067476910,9364.0,0.0001,2]
[337763892,1726067491523,171.43,0.00010959,2]
[337763893,1726067501997,500.0,0.00011164,2]
[337763894,1726067635858,1050.0,0.00011,2]
[337763895,1726067758244,11508.0,0.000102,5]
[337763896,1726067758630,2864.0,0.000101,3]
[337763897,1726067774654,163.98,0.00010959,2]
[337763898,1726067785927,819.95,0.00010959,2]
[337763900,1726067962260,522.02,0.00011145,2]
[337763901,1726068462286,495.91,0.00011213,2]
[337763905,1726068528362,-3964.15,0.00012505,2]
[337763906,1726068528391,-250.0,0.00012523,2]
[337763908,1726068528421,-150.0,0.00012699,2]
[337763910,1726068528450,-300.0,0.00012699,2]
[337763911,1726068528479,-451.40891878,0.000127,2]
[337763913,1726068528514,-3200.73902291,0.000127,2]
[337763914,1726068528549,-5115.55891878,0.000127,2]
[337763915,1726068528588,-5115.55891878,0.000127,2]
[337763916,1726068528658,-5115.55891878,0.000127,2]
[337763917,1726068528701,-3792.54340197,0.000127,2]
[337763918,1726068528729,-1323.01551681,0.000127,2]
[337763919,1726068528770,-5115.55891878,0.000127,2]
[337763920,1726068528810,-1075.87156441,0.000127,2]
[337763921,1726068528837,-2500.0,0.000127,2]
[337763922,1726068528863,-1539.68735437,0.000128,2]
[337763923,1726068528898,-5115.55891878,0.000128,2]
[337763960,1726068632197,-195.55,0.00012648,2]
[337763962,1726068632207,-250.0,0.00012656,2]
[337763963,1726068632216,-538.38,0.0001278,2]
[337763965,1726068632227,-295.33202042,0.0001278,2]
[337763966,1726068632237,-1974.18309637,0.0001278,2]
[337763967,1726068632248,-750.26546194,0.0001278,2]
[337763968,1726068632259,-1266.60175907,0.0001278,2]
[337763969,1726068632270,-905.36012168,0.0001278,2]
[337763970,1726068632281,-2670.21,0.0001278,2]
[337763971,1726068632295,-1395.90569524,0.0001278,2]
[337763972,1726068632305,-300.0,0.00012799,2]
[337763973,1726068632316,-150.0,0.00012799,2]
[337763974,1726068632325,-2227.69732685,0.000128,2]
[337763975,1726068632334,-2784.91465908,0.000128,2]
[337763976,1726068632345,-5621.07153573,0.000128,2]
[337763977,1726068632356,-22658.45920343,0.000128,2]
[337763978,1726068632366,-351.89855854,0.000128,2]
[337763979,1726068632382,-124228.87306688,0.000128,2]
[337763980,1726068632393,-4048.7911127,0.000128,2]
[337763981,1726068632405,-5395.38119057,0.000128,2]
[337763982,1726068632423,-1412.14945512,0.000128,2]
[337763983,1726068632434,-1895.56766088,0.000128,2]
[337763984,1726068632446,-549.52917014,0.000128,2]
[337763985,1726068632458,-664.57727663,0.000128,2]
[337763986,1726068632472,-12559.51491428,0.000128,2]
[337763987,1726068632482,-1255.12,0.000128,2]
[337763988,1726068632493,-793.35,0.000128,2]
[337763989,1726068632512,-862.70147104,0.000128,2]
[337763995,1726068638206,-7963.12062498,0.000128,2]
[337763996,1726068638216,-150.29,0.0001287,2]
[337763997,1726068638225,-6635.35909865,0.0001288,2]
[337763998,1726068638236,-5545.7965783,0.0001288,2]
[337763999,1726068638255,-48291.08238753,0.0001288,2]
[337764000,1726068638267,-1372.2,0.0001288,2]
[337764001,1726068638278,-7073.70400168,0.0001288,2]
[337764002,1726068638290,-855.00599979,0.0001288,2]
[337764003,1726068638309,-854.34805812,0.0001288,2]
[337764004,1726068638322,-955.97027776,0.0001288,2]
[337764005,1726068638336,-4936.4916975,0.0001288,2]
[337764006,1726068638350,-645.49882476,0.0001288,2]
[337764007,1726068638361,-67671.05201514,0.0001288,2]
[337764008,1726068638395,-929.30964568,0.0001288,2]
[337764009,1726068638407,-3181.070885,0.0001288,2]
[337764010,1726068638444,-1921.952907,0.0001288,2]
[337764011,1726068638455,-36923.19099976,0.0001288,2]
[337764012,1726068638467,-451.57864314,0.0001288,2]
[337764013,1726068638479,-348.23005832,0.0001288,2]
[337764014,1726068638491,-452.64,0.0001288,2]
[337764015,1726068638503,-44327.22015301,0.0001288,2]
[337764016,1726068638514,-880.12,0.0001288,2]
[337764017,1726068638593,-955.43437236,0.0001288,2]
[337764033,1726068640341,-1986.15335335,0.0001288,2]
[337764034,1726068640353,-818.06656972,0.0001288,2]
[337764035,1726068640364,-4503.46066958,0.0001288,2]
[337764036,1726068640376,-8289.3,0.0001288,2]
[337764037,1726068640389,-20973.64934183,0.0001288,2]
[337764038,1726068640402,-714.13926867,0.0001288,2]
[337764039,1726068640414,-15122.18966287,0.0001288,2]
[337764040,1726068640432,-513.23671877,0.0001288,2]
[337764041,1726068640445,-9894.76560632,0.0001288,2]
[337764042,1726068640456,-558.89350208,0.0001288,2]
[337764043,1726068640469,-13563.56734335,0.0001288,2]
[337764044,1726068640480,-1930.24085536,0.0001288,2]
[337764045,1726068640491,-1370.37733886,0.0001288,2]
[337764046,1726068640502,-500.0,0.0001288,2]
[337764047,1726068640513,-681.43362743,0.0001288,2]
[337764048,1726068640523,-927.22751103,0.0001288,2]
[337764049,1726068640534,-1048.582763,0.0001288,2]
[337764050,1726068640546,-846.52210567,0.0001288,2]
[337764051,1726068640557,-1637.29710056,0.0001288,2]
[337764052,1726068640568,-982.24203917,0.0001288,2]
[337764053,1726068640579,-31942.32762992,0.0001288,2]
[337764054,1726068640589,-9876.60459717,0.0001288,2]
[337764055,1726068640601,-511.70455756,0.0001288,2]
[337764056,1726068640612,-1598.20483595,0.0001288,2]
[337764058,1726068640742,-303.35499935,0.0001288,2]
[337764059,1726068640753,-8602.52214844,0.0001288,2]
[337764060,1726068640764,-2400.47475159,0.0001288,2]
[337764061,1726068640775,-442.00717896,0.0001288,2]
[337764062,1726068640786,-819.36243626,0.0001288,2]
[337764063,1726068640797,-235.09718422,0.0001288,2]
[337764064,1726068640807,-88.12215855,0.000129,2]
[337764065,1726068640818,-384.644286,0.000129,2]
[337764066,1726068640851,-449.72273905,0.000129,2]
[337764067,1726068640860,-533.52682535,0.000129,2]
[337764068,1726068640871,-2400.0,0.000129,2]
[337764069,1726068640882,-386.31032737,0.000129,2]
[337764070,1726068640893,-662.68309162,0.000129,2]
[337764071,1726068640904,-18.57023332,0.000129,2]
[337764072,1726068640913,-500.0,0.00012973,2]
[337764073,1726068640934,-537.9419557,0.0001299,2]
[337764074,1726068640943,-145.88850079,0.0001299,2]
[337764075,1726068640956,-392.05345491,0.0001299,2]
[337764076,1726068640965,-537.9419557,0.0001299,2]
[337764077,1726068640974,-43785.52306184,0.00013,2]
[337764078,1726068640983,-247.62511432,0.00013,2]
[337764079,1726068640991,-111931.5928429,0.00013,2]
[337764080,1726068641003,-483614.8298191,0.00013,2]
[337764081,1726068641012,-84090.47796895,0.00013,2]
[337764082,1726068641023,-215039.92691491,0.00013,2]
[337764083,1726068641033,-344475.0874631,0.00013,2]
[337764084,1726068641045,-489.17891229,0.00013,2]
[337764085,1726068641056,-616.89321857,0.00013,2]
[337764086,1726068641070,-331.44623355,0.00013,2]
[337764087,1726068641081,-2586.02150144,0.00013,2]
[337764088,1726068641092,-1001.60210072,0.00013,2]
[337764092,1726068643236,-1598.31428799,0.00013,2]
[337764093,1726068643248,-735.896,0.00013,2]
[337764094,1726068643260,-10988.3773015,0.00013,2]
[337764095,1726068643271,-1137.88598791,0.00013,2]
[337764096,1726068643283,-9291.90965979,0.00013,2]
[337764097,1726068643294,-1838.78,0.00013,2]
[337764098,1726068643306,-1113.8701207,0.00013,2]
[337764099,1726068643318,-298.93134934,0.00013,2]
[337764100,1726068643333,-737.99988251,0.00013,2]
[337764101,1726068643362,-7488.03175676,0.00013,2]
[337764104,1726068643625,-8509.44361792,0.00013,2]
[337764106,1726068643637,-362.93242649,0.00013,2]
[337764107,1726068643648,-19698.4265057,0.00013,2]
[337764108,1726068643675,-370.54106705,0.00013,2]
[337764109,1726068643686,-677.73625,0.00013,2]
[337764110,1726068643698,-1789.29207492,0.00013,2]
[337764111,1726068643711,-2382.32992867,0.00013,2]
[337764113,1726068643723,-5400.0,0.00013,2]
[337764120,1726068646282,-557.8322401,0.00013,2]
[337764121,1726068646296,-685.11662691,0.00013,2]
[337764122,1726068646310,-586.37199581,0.00013,2]
[337764123,1726068646321,-1269.0,0.00013,2]
[337764124,1726068646334,-2133.07562019,0.00013,2]
[337764125,1726068646347,-1401.42201098,0.00013,2]
[337764126,1726068646360,-5510.19526563,0.00013,2]
[337764127,1726068646373,-481.61185414,0.00013,2]
[337764128,1726068646385,-10391.97917367,0.00013,2]
[337764129,1726068646396,-873.74712415,0.00013,2]
[337764130,1726068646407,-618.3903605,0.00013,2]
[337764131,1726068646418,-2420.86061955,0.00013,2]
[337764132,1726068646431,-550.0,0.00013,2]
[337764133,1726068646442,-17189.36167256,0.00013,2]
[337764134,1726068646454,-400.0,0.00013,2]
[337764135,1726068646465,-7593.45532814,0.00013,2]
[337764136,1726068646476,-3690.46625153,0.00013,2]
[337764137,1726068646488,-4050.58204498,0.00013,2]
[337764138,1726068646500,-674.79429573,0.00013,2]
[337764139,1726068646513,-626.08111507,0.00013,2]
[337764140,1726068646526,-3972.33381361,0.00013,2]
[337764141,1726068646540,-1415.44956061,0.00013,2]
[337764142,1726068646551,-4999.62043342,0.00013,2]
[337764143,1726068646563,-117698.75954279,0.00013,2]
[337764144,1726068646574,-10152.93128189,0.00013,2]
[337764145,1726068646585,-312.64,0.00013,2]
[337764146,1726068646596,-879.9737992,0.00013,2]
[337764148,1726068646607,-5022.72191446,0.00013,2]
[337764149,1726068646625,-10164.3352765,0.00013,2]
[337764150,1726068646637,-2283.42218229,0.00013,2]
[337764151,1726068646648,-438.217861,0.00013,2]
[337764152,1726068646666,-3914.43486988,0.00013,2]
[337764153,1726068646679,-614.51768092,0.00013,2]
[337764154,1726068646690,-805.58226419,0.00013,2]
[337764155,1726068646701,-493.70431179,0.00013,2]
[337764156,1726068646713,-432.00902886,0.00013,2]
[337764157,1726068646724,-675.75650086,0.00013,2]
[337764158,1726068696317,154.94,0.00010959,2]
[337764159,1726068983905,471.11,0.00010469,2]
[337764160,1726069153719,175.82,0.0001421,120]
[337764161,1726069308722,155.19,0.00011995,2]
[337764162,1726069320875,214.58,0.00010959,2]
[337764163,1726069394751,200.0,0.0001191,2]
[337764164,1726069438259,1050.0,0.00011,2]
[337764165,1726069501661,447.55,0.00010131,2]
[337764185,1726069787454,-3882.29117214,0.00012027,2]
[337764189,1726069831378,-163.38,0.00012017,2]